[Event "Silves Open 2025"]
[Site "Fissul"]
[Date "2025.03.03"]
[Round "2.34"]
[White "Ribeiro, Margarida"]
[Black "Rogge, Marloes"]
[Result "0-1"]
[Annotator "NA COMBH"]
[ECO "B07"]
[WhiteElo "1519"]
[BlackElo "1761"]
[PlyCount "88"]
[EventDate "2025.03.03"]
[EventType "swiss"]
[EventCountry "POR"]
[SourceTitle "playchess.com"]
[Source "ChessBase"]
[SourceQuality "1"]
[TimeControl "5400+30"]

1. e4 {[%emt 0:00:01]} d6 {[%emt 0:03:25]} 2. d4 {[%emt 0:00:05]} Nf6 {[%emt 0:00:17]} 3. Nc3 {[%emt 0:00:09]} e5 {[%emt 0:00:38]} 4. dxe5 {[%emt 0:00:22]} dxe5 {[%emt 0:00:22]} 5. Qxd8+ {[%emt 0:00:08]} Kxd8 {[%emt 0:00:09]} 6. Bg5 {[%emt 0:00:08]} Be6 {[%emt 0:00:17]} 7. O-O-O+ {[%emt 0:00:33]} Nbd7 {[%emt 0:00:18]} 8. Nf3 {[%emt 0:01:55]} Kc8 {[%emt 0:00:12]} 9. Bxf6 {[%emt 0:01:34]} gxf6 {[%emt 0:00:10]} 10. g3 {[%emt 0:11:58]} c6 {[%emt 0:00:25]} 11. Bg2 {[%emt 0:01:08]} a5 {[%emt 0:00:26]} 12. Na4 {[%emt 0:15:03]} Kc7 {[%emt 0:00:16]} 13. b3 {[%emt 0:06:28]} b5 {[%emt 0:00:37]} 14. Nb2 {[%emt 0:00:27]} a4 {[%emt 0:04:23]} 15. Kb1 {[%emt 0:01:54]} Nc5 {[%emt 0:03:26]} 16. Rhe1 {[%emt 0:02:23]} axb3 {[%emt 0:03:11]} 17. cxb3 {[%emt 0:00:31]} Be7 {[%emt 0:01:12]} 18. Nd3 {[%emt 0:02:37]} Ra3 {[%emt 0:02:04]} 19. Nxc5 {[%emt 0:00:50]} Bxc5 {[%emt 0:00:24]} 20. Re2 {[%emt 0:00:30]} Rha8 {[%emt 0:00:23]} 21. Rdd2 {[%emt 0:03:01]} Bb4 {[%emt 0:03:26]} 22. Rb2 {[%emt 0:01:11]} Bc3 {[%emt 0:02:25]} 23. Rbc2 {[%emt 0:00:34]} b4 {[%emt 0:01:23]} 24. Nd2 {[%emt 0:02:28]} Bxb3 {[%emt 0:02:41]} 25. Nxb3 {[%emt 0:00:16]} Rxb3+ {[%emt 0:01:13]} 26. Kc1 {[%emt 0:00:25]} Rba3 {[%emt 0:00:50]} 27. Bf3 {[%emt 0:02:59]} Kd7 {[%emt 0:02:59]} 28. Bg4+ {[%emt 0:01:00]} Ke7 {[%emt 0:00:12]} 29. f4 {[%emt 0:00:39]} c5 {[%emt 0:00:39]} 30. h4 {[%emt 0:00:36]} h6 {[%emt 0:00:34]} 31. Bh5 {[%emt 0:01:05]} Rg8 {[%emt 0:07:23]} 32. Rg2 {[%emt 0:00:21]} Bd4 {[%emt 0:02:37]} 33. fxe5 {[%emt 0:01:47]} fxe5 {[%emt 0:00:41]} 34. g4 {[%emt 0:00:21]} f6 {[%emt 0:03:34]} 35. Rce2 {[%emt 0:03:50]} Rh3 {[%emt 0:00:31]} 36. Rh2 {[%emt 0:00:28]} Ra3 {[%emt 0:02:56]} 37. Rhg2 {[%emt 0:00:46]} c4 {[%emt 0:01:33]} 38. Rc2 {[%emt 0:00:47]} c3 {[%emt 0:01:26]} 39. Kd1 {[%emt 0:00:46]} Be3 {[%emt 0:01:32]} 40. Rg3 {[%emt 0:01:36]} Rd8+ {[%emt 0:00:38]} 41. Ke2 {[%emt 0:00:26]} Rd2+ {[%emt 0:01:16]} 42. Rxd2 {[%emt 0:00:23]} Bxd2 {[%emt 0:00:20]} 43. Rg2 {[%emt 0:01:20]} Rxa2 {[%emt 0:00:33]} 44. Kd3 {[%emt 0:00:07]} b3 {[%emt 0:00:44]} 0-1

[Event "Silves Open 2025"]
[Site "Fissul"]
[Date "2025.03.03"]
[Round "2.37"]
[White "Crow, Steve"]
[Black "De Oliveira, Victor Gabriel C."]
[Result "1-0"]
[Annotator "TA"]
[ECO "C49"]
[WhiteElo "1742"]
[BlackElo "2176"]
[PlyCount "23"]
[EventDate "2025.03.03"]
[EventType "swiss"]
[EventCountry "POR"]
[SourceTitle "playchess.com"]
[Source "ChessBase"]
[SourceQuality "1"]
[TimeControl "5400+30"]

{[%evp 10,22,34,16,81,61,186,130,228,204,350,341,29995,29996,29999]} 1. e4 {[%emt 0:04:54]} e5 {[%emt 0:00:27]} 2. Nf3 {[%emt 0:00:35]} Nf6 {[%emt 0:00:17]} 3. Nc3 {[%emt 0:03:26]} Nc6 {[%emt 0:00:13]} 4. Bb5 {[%emt 0:06:08]} Bb4 {[%emt 0:00:41]} 5. O-O {[%emt 0:02:05]} Bxc3 {[%emt 0:00:35]} 6. bxc3 {[%emt 0:01:02][%cal Bb2c3,Bc3c4][%mdl 32]} Nxe4 {[%emt 0:00:14] C49: Four Knights: 4 Bb5 Bb4.} (6... O-O $11) 7. Re1 {[%emt 0:01:39]} (7. Bxc6 {simplifies} bxc6 8. Re1 Nf6 9. Rxe5+ Kf8 10. c4) 7... d5 {[%emt 0:00:34]} ({Black should try} 7... Nf6 $14) 8. Ba3 {[%emt 0:06:07]} ({Resist} 8. Nxe5 $6 Qf6 $14) (8. d3 $18 Nd6 (8... Nxc3 $2 9. Bxc6+ bxc6 10. Rxe5+ Be6 11. Qe1 $18) 9. Nxe5 (9. Rxe5+ Be6 $16)) 8... Bg4 $146 {[%emt 0:00:34] [#]} (8... f6 $16 {was called for.}) (8... Qf6 9. c4 Be6 10. cxd5 Bxd5 11. c4 Bxc4 12. Bxc4 O-O-O 13. Rxe4 Nd4 14. Nxe5 Rhe8 {1-0 Paredes Galan,A-Casado,R Naron op 1993}) 9. c4 $1 $18 {[%emt 0:09:16] Hoping for cxd5.} Bxf3 {[%emt 0:01:21]} (9... a6 $142 10. Bxc6+ bxc6) 10. Qxf3 {[%emt 0:00:14]} Nxd2 $2 {[%emt 0:01:02]} (10... f6 $18 11. cxd5 Qxd5) 11. Rxe5+ {[%emt 0:00:51]} Kd7 {[%emt 0:00:59]} 12. Qf5# {[%emt 0:00:17] Black got outplayed after the opening.   Weighted Error Value: White=0.18 (very precise) /Black=1.48  Mistake:       	White=1     	Black=4      OK:         	White=1     	---        Strong:       	White=1     	---} 1-0

[Event "Silves Open 2025"]
[Site "Fissul"]
[Date "2025.03.03"]
[Round "3.2"]
[White "Rasti, Arvin"]
[Black "Martins, Bruno Andre Leite"]
[Result "0-1"]
[Annotator "TA"]
[ECO "D73"]
[WhiteElo "2232"]
[BlackElo "2360"]
[PlyCount "80"]
[EventDate "2025.03.03"]
[EventType "swiss"]
[EventCountry "POR"]
[SourceTitle "playchess.com"]
[Source "ChessBase"]
[SourceQuality "1"]
[TimeControl "5400+30"]

{[%evp 10,80,27,12,19,0,0,0,0,0,0,0,0,0,-10,11,-5,-30,25,-20,-11,-18,-29,-18,-13,-16,-14,-24,2,4,16,0,8,13,10,-6,-8,-16,0,-7,-8,-36,-32,-41,-29,-152,-150,-153,-129,-137,-137,-131,-139,-124,-136,-202,-204,-206,-200,-294,-282,-342,-310,-407,-362,-501,-497,-488,-339,-460,-454,-516,-479]} 1. Nf3 {[%emt 1:31:00]} d5 {[%emt 0:03:04]} 2. g3 {[%emt 0:00:00]} g6 {[%emt 0:00:23]} 3. Bg2 {[%emt 0:00:00]} Bg7 {[%emt 1:28:33]} 4. d4 {[%emt 0:00:00]} c6 {[%emt 0:00:00]} 5. O-O {[%emt 0:00:00]} Nf6 {[%emt 0:00:00]} 6. c4 {[%emt 0:00:00]} dxc4 {[%emt 0:00:00] D73: Fianchetto Grünfeld: 5 Nf3 .} 7. a4 {[%emt 0:00:00]} Ne4 {[%emt 0:00:00]} 8. Qc2 {[%emt 0:00:00]} Nd6 {[%emt 0:00:00] The position is equal.} 9. Nbd2 {[%emt 0:00:00]} O-O {[%emt 0:00:00]} 10. Nxc4 {[%emt 0:00:00]} Bf5 {[%emt 0:00:00]} 11. Qc3 {[%emt 0:00:00]} c5 {[%emt 0:00:00] ...cxd4 is in the air} 12. Nxd6 {[%emt 0:00:00]} exd6 {[%emt 0:00:00]} 13. Qb3 $146 {[%emt 0:00:00]} (13. Bg5 Qb6 14. a5 Qa6 15. Qd2 Nc6 16. Bh6 Nxd4 17. Nxd4 Bxh6 18. Qxh6 cxd4 19. Ra4 Qxe2 20. Rxd4 Qxb2 21. Rh4 Qg7 22. Qxg7+ Kxg7 23. a6 {½-½ Gauri,S (2373)-Mishra,A (2510) Charlotte CCCSA Winter GM-A 2022 (6)}) 13... Be4 {[%emt 0:00:00]} (13... Qb6 $142 14. Qxb6 axb6) 14. Bg5 {[%emt 0:00:00][%cal Bc1g5,Bg5e7,Be7d6,Bd6c7][%mdl 32]} Qb6 {[%emt 0:00:00]} 15. Qxb6 {[%emt 0:00:00]} axb6 {[%emt 0:00:00]} 16. Be7 {[%emt 0:00:00]} Re8 {[%emt 0:00:00]} 17. Bxd6 {[%emt 0:00:00]} cxd4 {[%emt 0:00:00]} 18. Bc7 {[%emt 0:00:00]} Nc6 {[%emt 0:00:00]} 19. Bxb6 {[%emt 0:00:00]} Bc2 {[%emt 0:00:00][%csl LRa4,LRe2]} 20. Ne1 {[%emt 0:00:00][%cal Bf3e1,Be1d3,Bd3c5][%mdl 32]} Bxa4 {[%emt 0:00:00]} 21. Nd3 {[%emt 0:00:00]} Ra6 {[%emt 0:00:00]} (21... Rxe2 $6 22. Nc5 $16) 22. Nc5 {[%emt 0:00:00]} Rxb6 {[%emt 0:00:00]} 23. Rxa4 {[%emt 0:00:00]} Rxb2 {[%emt 0:00:00]} (23... Rxe2 $2 24. Ra8+ (24. Nd7 Rb5 $16) 24... Bf8 25. Rxf8+ (25. Nd7 Rb5 $16) 25... Kxf8 26. Nd7+ Ke7 27. Nxb6 $18) 24. Nxb7 {[%emt 0:00:00]} Ne5 {[%emt 0:00:00]} 25. Rd1 {[%emt 0:00:00]} Rxe2 {[%emt 0:00:00]} 26. Nd6 {[%emt 0:00:00]} Re6 {[%emt 0:00:00]} 27. Kf1 {[%emt 0:00:00] [#]} (27. Ne4 $11) 27... Ng4 $1 $17 {[%emt 0:00:00]} (27... d3 28. Ne4 $17) 28. Ne4 {[%emt 0:00:00]} R2xe4 {[%emt 0:04:21]} 29. Bxe4 {[%emt 0:00:00]} Rxe4 {[%emt 0:00:09]} 30. h3 {[%emt 0:00:00]} Nh6 {[%emt 0:03:13]} 31. Ra8+ {[%emt 0:00:00]} Bf8 {[%emt 0:00:07]} 32. f3 {[%emt 0:00:00]} (32. g4 $17 {might work better.}) 32... Re3 $19 {[%emt 0:01:21]} 33. Rxd4 {[%emt 0:00:00]} Kg7 {[%emt 0:02:29][%cal Oh6f5] [#]} (33... Rxf3+ 34. Ke2 Ra3 (34... Rxg3 $2 35. Rdd8 $17) 35. Rxa3 Bxa3 36. g4 $19) 34. Kf2 {[%emt 0:00:00]} (34. g4 $142) 34... Rc3 {[%emt 0:00:30]} 35. Rd2 {[%emt 0:00:00]} Nf5 {[%emt 0:00:26] aiming for ...Bc5+.} 36. Ra5 {[%emt 0:00:00]} Bb4 {[%emt 0:02:11]} 37. Rad5 {[%emt 0:00:00]} Bc5+ {[%emt 0:00:20]} 38. Ke1 {[%emt 0:18:30]} Re3+ {[%emt 0:01:15]} (38... Nxg3 39. Rg2 Nh1 40. Kd2 $19) 39. Kd1 {[%emt 0:00:00]} Bb4 {[%emt 0:00:15]} ({Much less strong is} 39... Rc3 40. R5d3 Rxd3 41. Rxd3 Nxg3 42. Rd5 $19) 40. g4 {[%emt 0:00:00]} Bxd2 {[%emt 0:00:51] Weighted Error Value: White=0.30/Black=0.11 (very precise)   Mistake:       	White=3     	Black=1      Inaccurate:     	White=5     	Black=2      OK:         	White=13    	Black=21     Best:        	White=1     	Black=2} 0-1

[Event "Silves Open 2025"]
[Site "Fissul"]
[Date "2025.03.03"]
[Round "3.4"]
[White "Alshameary Puente, Ismael"]
[Black "Vasques, Antonio Pedro Freixi"]
[Result "1-0"]
[Annotator "TA"]
[ECO "D24"]
[WhiteElo "2343"]
[BlackElo "2246"]
[PlyCount "69"]
[EventDate "2025.03.03"]
[EventType "swiss"]
[EventCountry "POR"]
[SourceTitle "playchess.com"]
[Source "ChessBase"]
[SourceQuality "1"]
[TimeControl "5400+30"]

{[%evp 9,68,20,51,56,54,55,62,51,75,47,70,46,43,16,15,24,11,14,58,44,52,47,66,52,58,43,86,79,111,74,93,93,67,16,15,8,46,21,64,69,174,144,216,216,314,296,345,248,179,183,896,863,1691,1554,29995,29996,29997,29998,29998,29999,29999]} 1. d4 {[%emt 0:00:02]} d5 {[%emt 0:01:02][%cal Bd7d5,Bd5c4][%mdl 32]} 2. c4 {[%emt 0:00:22]} dxc4 {[%emt 0:00:17]} 3. Nf3 {[%emt 0:00:46]} Nf6 {[%emt 0:00:06][%cal Bg8f6,Bf6d5,Bd5c3][%mdl 32]} 4. Nc3 {[%emt 0:02:47]} e6 {[%emt 0:02:04]} 5. e4 {[%emt 0:02:25][%cal Be2e4,Be4e5][%mdl 32]} a6 {[%emt 0:05:18]} 6. e5 {[%emt 0:04:28] D24: Queen's Gambit Accepted: 3 Nf3 Nf6 4 Nc3.} Nd5 {[%emt 0:00:49]} 7. Bxc4 {[%emt 0:00:09]} Nxc3 {[%emt 0:05:27]} 8. bxc3 {[%emt 0:00:06] White is slightly better.} b5 {[%emt 0:00:50]} 9. Bd3 {[%emt 0:01:51]} Bb7 {[%emt 0:00:26]} 10. O-O {[%emt 0:00:30]} c5 {[%emt 0:01:48]} 11. Ng5 {[%emt 0:14:27]} cxd4 $146 {[%emt 0:17:12]} (11... h6 12. Qh5 Qd7 13. Nxf7 {1-0 Gavrilov,A (2493)-Hoffmann,H (2209) Pardubice Czech op-A 21st 2010 (9)}) 12. cxd4 {[%emt 0:01:46]} (12. Nxh7 dxc3 13. Nxf8 Kxf8 $19) 12... Be7 $1 {[%emt 0:01:21]} 13. Qh5 {[%emt 0:16:10]} Bxg5 {[%emt 0:17:12]} 14. Bxg5 {[%emt 0:05:31]} Qd5 {[%emt 0:00:07][%csl Gb7][%cal Rd5g2] Black is weak on the dark squares} 15. Qh3 {[%emt 0:06:44] A sharp opening} (15. Bxh7 $2 Qxg2#) 15... Nd7 {[%emt 0:02:04][%cal Bb8d7,Bd7b6,Bb6d5,Bd5c3][%mdl 32]} 16. Rfe1 {[%emt 0:03:34]} (16. Bxh7 $2 Rxh7 (16... Qxd4 $2 17. Rad1 $17) 17. Qg3 Rc8 $19 (17... Qxd4 $2 18. Rad1 $19)) 16... Nb6 {[%emt 0:00:26]} 17. Rac1 {[%emt 0:03:03] Prevents Rc8} (17. Bxh7 $2 Rxh7 (17... Qxd4 18. Rad1 $16) 18. Qg4 Rc8 $19) 17... Qd7 {[%emt 0:04:34][%cal Oh7h6] Against Rc7} 18. Qg3 {[%emt 0:06:29] White is much more active.} Bd5 {[%emt 0:08:40]} 19. Rc2 {[%emt 0:14:52]} Bc4 {[%emt 0:10:30]} 20. Be4 {[%emt 0:01:41] A strong pair of Bishops.} Bd5 {[%emt 0:00:31]} 21. Bxd5 {[%emt 0:05:21]} (21. Rec1 $14 Nc4 (21... Bxe4 22. Rc7 $16) 22. Bd3) 21... Nxd5 $11 {[%emt 0:00:54]} 22. Rec1 {[%emt 0:00:06]} b4 {[%emt 0:07:10]} 23. h4 {[%emt 0:02:13]} Nc3 {[%emt 0:03:34][%cal Oh7h5]} 24. h5 {[%emt 0:01:33]} a5 {[%emt 0:04:57]} (24... h6 $14 25. Be3 Kf8) 25. h6 $18 {[%emt 0:01:19]} g6 {[%emt 0:00:53] [#]} (25... Rg8 $16) 26. Qf3 $1 {[%emt 0:00:06]} Rb8 {[%emt 0:01:28]} (26... Rc8 $142 27. a3 (27. Qf6 Rf8 $18) 27... f6) 27. Qf6 {[%emt 0:00:13]} Rg8 {[%emt 0:01:22] [#]} 28. Qg7 $3 $40 {[%emt 0:00:21][%mdl 640] White attacks with force.} Rf8 {[%emt 0:00:19]} (28... Rxg7 $2 {is the wrong capture.} 29. hxg7 $18) ({Avoid the trap} 28... Ne2+ $2 29. Rxe2 Rf8 30. Rec2 $18 (30. Qxh7 f6 $18)) 29. Qxh7 {[%emt 0:00:34][%csl Oh6] and Qg7 should not be overlooked. White has a king side majority. White has a strong passed pawn} Qxd4 $2 {[%emt 0:00:36]} (29... f5 30. Qxg6+ Qf7) 30. Qg7 {[%emt 0:00:49]} Qg4 {[%emt 0:02:53] [#]} 31. h7 $1 {[%emt 0:02:33][%cal Og7f8] Threatening mate with Qxf8+!.} Ne2+ {[%emt 0:00:20] [#]} (31... Kd7 32. Qf6) 32. Rxe2 $1 {[%emt 0:00:25][%mdl 512] White mates.} Qxg5 {[%emt 0:00:04] [#]} (32... Qh4 33. Bxh4) 33. Qxf8+ $3 {[%emt 0:00:20][%mdl 512]} Kxf8 {[%emt 0:00:07]} 34. h8=Q+ {[%emt 0:00:06]} Ke7 {[%emt 0:00:02]} 35. Rc7# {[%emt 0:00:40] Weighted Error Value: White=0.25 (precise) /Black=0.72  Mistake:       	White=1     	Black=4      Inaccurate:     	White=3     	Black=6      OK:         	White=6     	Black=8      Best:        	White=3     	Black=1      Strong:       	White=1     	Black=1} 1-0

[Event "Silves Open 2025"]
[Site "Fissul"]
[Date "2025.03.03"]
[Round "3.5"]
[White "Sarabando, Rodrigo Andias"]
[Black "Lux, Hugo de Melo"]
[Result "1/2-1/2"]
[Annotator "TA"]
[ECO "A87"]
[WhiteElo "2097"]
[BlackElo "2329"]
[PlyCount "103"]
[EventDate "2025.03.03"]
[EventType "swiss"]
[EventCountry "POR"]
[SourceTitle "playchess.com"]
[Source "ChessBase"]
[SourceQuality "1"]
[TimeControl "5400+30"]

{[%evp 15,103,34,22,22,47,25,38,23,34,3,0,-1,31,-38,-37,-47,-38,-28,-43,-97,-88,-119,-170,-161,-83,-77,-82,-80,-77,-66,-78,-78,-45,-45,-40,-42,-18,-55,14,-12,-18,-914,-898,-902,-911,-837,408,-818,-786,-755,-718,-602,-510,-477,-425,-351,-339,-431,-431,-430,-406,-402,-367,-367,-367,-483,-483,-483,-483,-483,-483,-783,-482,-482,-482,-479,-475,-475,-475,-475,-440,-440,-431,-431,0,0,0,0,0,0]} 1. d4 {[%emt 0:02:43]} g6 {[%emt 0:00:14]} 2. Nf3 {[%emt 0:07:08]} Bg7 {[%emt 0:00:30]} 3. c4 {[%emt 0:01:44]} f5 {[%emt 0:01:17]} 4. g3 {[%emt 0:06:54]} Nf6 {[%emt 0:00:15]} 5. Bg2 {[%emt 0:00:07]} O-O {[%emt 0:00:05]} 6. O-O {[%emt 0:00:05]} d6 {[%emt 0:00:02]} 7. Nc3 {[%emt 0:01:12]} Qe8 {[%emt 0:00:07]} 8. Re1 {[%emt 0:10:42]} e5 {[%emt 0:00:48]} 9. e4 {[%emt 0:02:30] A87: Dutch Defence: Leningrad System: 5 Nf3.} Nc6 {[%emt 0:05:16]} 10. dxe5 {[%emt 0:10:39]} dxe5 {[%emt 0:00:10]} 11. exf5 {[%emt 0:12:43] White is slightly better.} Bxf5 {[%emt 0:00:22]} 12. Bg5 {[%emt 0:07:33]} h6 {[%emt 0:28:19]} 13. Bxf6 {[%emt 0:05:27]} Rxf6 {[%emt 0:00:22] [#]} 14. Nxe5 $146 {[%emt 0:17:59]} ({Predecessor:} 14. Nd5 Rf7 15. Nh4 Nd4 16. f4 c6 17. fxe5 Bxe5 18. Nxf5 Nxf5 19. Kh1 Kh7 20. Nf4 {½-½ Thejkumar,M (2322)-Sengupta,D (2420) IND-ch 44th Atul 2006 (1)}) 14... Nxe5 $15 {[%emt 0:01:44]} 15. f4 {[%emt 0:02:03] [#]} Re6 $1 {[%emt 0:10:40]} 16. fxe5 {[%emt 0:02:06]} Rxe5 {[%emt 0:23:14]} 17. Bxb7 {[%emt 0:03:01]} (17. Rxe5 $15 Qxe5 18. Qd5+ Qxd5 19. Nxd5 (19. Bxd5+ Kh8 $17)) 17... Rb8 $1 $17 {[%emt 0:04:14][%cal Ba8b8,Bb8b2,Bb2f2][%mdl 32]} 18. Rxe5 {[%emt 0:01:15]} Qxe5 {[%emt 0:02:57]} 19. Qf3 {[%emt 0:01:15] [#]} c6 {[%emt 0:12:32]} 20. Bxc6 {[%emt 0:02:01]} Rxb2 {[%emt 0:01:37]} 21. Qd5+ {[%emt 0:00:53]} Kh7 {[%emt 0:00:49]} 22. Qxe5 {[%emt 0:00:40]} Bxe5 {[%emt 0:00:01] This pair of bishops is nice.} 23. Rc1 {[%emt 0:00:40]} h5 {[%emt 0:00:06][%mdl 1024] Black has strong compensation.} 24. Bf3 {[%emt 0:00:36]} Bd4+ {[%emt 0:02:46]} 25. Kh1 {[%emt 0:00:02]} Rf2 {[%emt 0:00:07]} 26. Bg2 {[%emt 0:00:06][%cal Oc4c5]} g5 {[%emt 0:00:51]} (26... Kh6 $15) 27. Nb5 {[%emt 0:01:07]} Bc5 {[%emt 0:00:41]} 28. Rf1 $2 {[%emt 0:00:27][%mdl 8192] [#]} (28. Nc3 $11) 28... Rxg2 $1 $19 {[%emt 0:01:12]} 29. Kxg2 {[%emt 0:00:02][%mdl 4096] Endgame KRN-KB} Be4+ {[%emt 0:00:05]} 30. Kh3 {[%emt 0:00:17] [#]} g4+ $1 {[%emt 0:00:07]} 31. Kh4 {[%emt 0:00:13]} Kg6 {[%emt 0:00:28]} 32. Rf7 {[%emt 0:01:02] Repels Be7+} Kxf7 {[%emt 0:01:57]} 33. Kxh5 {[%emt 0:00:03]} Bf3 {[%emt 0:01:33]} 34. Kg5 {[%emt 0:00:30]} Bg1 {[%emt 0:01:28]} 35. Kf4 {[%emt 0:00:41]} Bxh2 {[%emt 0:00:27] And now ...Bg1 would win.} 36. Nxa7 {[%emt 0:00:44]} Bg1 {[%emt 0:00:02]} 37. Nb5 {[%emt 0:00:30]} Bb6 {[%emt 0:00:37]} 38. Kf5 {[%emt 0:00:46]} Ke7 {[%emt 0:00:18] Dodges Nd6} 39. Nc3 {[%emt 0:00:49]} Bd4 {[%emt 0:00:54]} 40. Nd5+ {[%emt 0:00:41]} Kd6 {[%emt 0:00:16]} 41. a4 {[%emt 0:00:31]} Kc5 {[%emt 0:00:17]} 42. a5 {[%emt 0:00:27]} Kxc4 {[%emt 0:00:06]} 43. Nc7 {[%emt 0:00:34]} (43. Nf4 $142 Kb5 44. Ng6) 43... Bf2 {[%emt 0:00:27]} 44. Kf4 {[%emt 0:00:30]} Ba7 {[%emt 0:00:22] ( -> ...Bb8)} 45. Ne8 {[%emt 0:00:30]} Bd4 {[%emt 0:01:14]} 46. Nc7 {[%emt 0:00:23]} Bc5 {[%emt 0:00:55]} 47. Ne8 {[%emt 0:00:12] Inhibits Bd6+.} Be7 {[%emt 0:00:36]} 48. a6 {[%emt 0:00:08]} Kd5 {[%emt 0:00:31]} 49. a7 {[%emt 0:00:25]} Ke6 $2 {[%emt 0:00:30]} (49... Kc5 $19 50. Kf5 Kb6) 50. a8=Q $11 {[%emt 0:00:30] The position is equal.} Bxa8 {[%emt 0:00:25]} 51. Nc7+ {[%emt 0:00:07]} Kf6 {[%emt 0:00:12] ( -> ...Bd6+)} 52. Nxa8 {[%emt 0:00:07] Weighted Error Value: White=0.38/Black=0.33  Loses game:     	White=1     	---        Missed win:     	---       	Black=1      Mistake:       	White=3     	Black=2      Inaccurate:     	White=5     	Black=3      OK:         	White=16    	Black=10     Best:        	White=8     	Black=1      Strong:       	---       	Black=1      Brilliant:      	---       	Black=1} 1/2-1/2